[Event "1st SOA-GM Festival 2024"]
[Site "Bhubaneswar"]
[Date "2024.02.01"]
[Round "4.2"]
[White "Vignesh Advaith Vemula"]
[Black "Audi Ameya"]
[Result "1/2-1/2"]
[WhiteElo "2028"]
[BlackElo "2385"]
[PlyCount "80"]
[EventDate "2024.02.01"]
[EventType "swiss"]
[EventCountry "IND"]
[TimeControl "5400+30"]

1. e4 {[%emt 0:00:03]} c5 {[%emt 0:00:13]} 2. Nf3 {[%emt 0:00:08]} d6 {[%emt 0:00:05]} 3. d4 {[%emt 0:00:05]} cxd4 {[%emt 0:00:02]} 4. Nxd4 {[%emt 0:00:06]} Nf6 {[%emt 0:00:02]} 5. Nc3 {[%emt 0:00:08]} a6 {[%emt 0:00:03]} 6. Be3 {[%emt 0:00:07]} Ng4 {[%emt 0:00:25]} 7. Bc1 {[%emt 0:00:12]} Nc6 {[%emt 0:00:29]} 8. f3 {[%emt 0:05:46]} Qb6 {[%emt 0:00:26]} 9. fxg4 {[%emt 0:18:26]} Qxd4 {[%emt 0:00:25]} 10. Be2 {[%emt 0:00:20]} Be6 {[%emt 0:14:39]} 11. Qxd4 {[%emt 0:04:14]} Nxd4 {[%emt 0:00:04]} 12. Bd1 {[%emt 0:00:04]} Rc8 {[%emt 0:04:25]} 13. Be3 {[%emt 0:02:15]} Nc6 {[%emt 0:00:06]} 14. Be2 {[%emt 0:01:32]} g6 {[%emt 0:06:08]} 15. O-O-O {[%emt 0:04:29]} Bg7 {[%emt 0:00:06]} 16. Nd5 {[%emt 0:00:30]} Ne5 {[%emt 0:06:11]} 17. h3 {[%emt 0:01:55]} Nc4 {[%emt 0:05:41]} 18. Bd4 {[%emt 0:01:18]} Bxd4 {[%emt 0:00:34]} 19. Rxd4 {[%emt 0:00:06]} Bxd5 {[%emt 0:00:34]} 20. exd5 {[%emt 0:00:43]} b5 {[%emt 0:12:34]} 21. b3 {[%emt 0:05:56]} Nb6 {[%emt 0:01:20]} 22. a4 {[%emt 0:00:27]} bxa4 {[%emt 0:02:34]} 23. Bxa6 {[%emt 0:00:06]} Rc5 {[%emt 0:00:03]} 24. Rb4 {[%emt 0:01:17]} Nd7 {[%emt 0:00:59]} 25. Rb7 {[%emt 0:04:42]} axb3 {[%emt 0:14:20]} 26. Bb5 {[%emt 0:00:06]} O-O {[%emt 0:01:58]} 27. Bxd7 {[%emt 0:00:11]} bxc2 {[%emt 0:00:12]} 28. Kb2 {[%emt 0:05:39]} Rxd5 {[%emt 0:01:13]} 29. Rc1 {[%emt 0:00:12]} Rd2 {[%emt 0:02:25]} 30. Rxc2 {[%emt 0:00:23]} Rxc2+ {[%emt 0:00:03]} 31. Kxc2 {[%emt 0:00:08]} Ra8 {[%emt 0:00:01]} 32. Kd3 {[%emt 0:01:30]} Ra3+ {[%emt 0:03:43]} 33. Ke2 {[%emt 0:00:20]} g5 {[%emt 0:03:52]} 34. Bc6 {[%emt 0:01:36]} Kf8 {[%emt 0:00:04]} 35. Rb5 {[%emt 0:03:54]} h6 {[%emt 0:00:07]} 36. Rf5 {[%emt 0:00:22]} e6 {[%emt 0:01:06]} 37. Rb5 {[%emt 0:00:47]} d5 {[%emt 0:01:17]} 38. Rb8+ {[%emt 0:00:47]} Kg7 {[%emt 0:00:03]} 39. Rb7 {[%emt 0:00:07]} Kf8 {[%emt 0:00:13]} 40. Rb2 {[%emt 0:01:31]} Rg3 {[%emt 0:01:35]} 1/2-1/2

[Event "1st SOA-GM Festival 2024"]
[Site "Bhubaneswar"]
[Date "2024.02.01"]
[Round "4.3"]
[White "Nguyen Van Huy"]
[Black "Ghosh, Diptayan"]
[Result "1/2-1/2"]
[WhiteElo "2364"]
[BlackElo "2568"]
[PlyCount "37"]
[EventDate "2024.02.01"]
[EventType "swiss"]
[EventCountry "IND"]
[TimeControl "5400+30"]

1. d4 {[%emt 0:00:05]} Nf6 {[%emt 0:03:20]} 2. c4 {[%emt 0:00:52]} e6 {[%emt 0:00:05]} 3. Nf3 {[%emt 1:31:03]} d5 {[%emt 0:00:10]} 4. g3 {[%emt 0:00:00]} Be7 {[%emt 0:00:10]} 5. Bg2 {[%emt 0:00:00]} O-O {[%emt 0:00:05]} 6. O-O {[%emt 0:00:00]} a5 {[%emt 0:00:07]} 7. Qc2 {[%emt 0:00:00]} Nc6 {[%emt 0:01:05]} 8. a3 {[%emt 0:00:00]} dxc4 {[%emt 0:00:07]} 9. Qxc4 {[%emt 0:00:00]} a4 {[%emt 0:00:05]} 10. Nc3 {[%emt 0:00:00]} Bd7 {[%emt 0:00:16]} 11. Bg5 {[%emt 0:00:00]} Na5 {[%emt 0:13:06]} 12. Qd3 {[%emt 0:00:00]} Bc6 {[%emt 0:06:15]} 13. e4 {[%emt 0:00:00]} Nd7 {[%emt 0:12:48]} 14. Bf4 {[%emt 0:00:00]} Nb6 {[%emt 0:07:26]} 15. Rad1 {[%emt 0:00:00]} Bd6 {[%emt 0:00:10]} 16. Bg5 {[%emt 0:00:00]} Be7 {[%emt 0:00:12]} 17. Bf4 {[%emt 0:00:00]} Bd6 {[%emt 0:00:10]} 18. Bg5 {[%emt 0:00:00]} Be7 {[%emt 0:00:04]} 19. Bf4 {[%emt 0:00:00]} 1/2-1/2

[Event "1st SOA-GM Festival 2024"]
[Site "Bhubaneswar"]
[Date "2024.02.01"]
[Round "4.4"]
[White "Fawzy, Adham"]
[Black "Rajesh, V A V"]
[Result "1/2-1/2"]
[WhiteElo "2522"]
[BlackElo "2331"]
[PlyCount "117"]
[EventDate "2024.02.01"]
[EventType "swiss"]
[EventCountry "IND"]
[TimeControl "5400+30"]

1. e4 {[%emt 0:01:24]} e5 {[%emt 0:00:07]} 2. Nf3 {[%emt 0:00:18]} Nc6 {[%emt 0:00:07]} 3. Bc4 {[%emt 0:00:30]} Bc5 {[%emt 0:00:08]} 4. c3 {[%emt 0:00:14]} Nf6 {[%emt 0:00:05]} 5. d4 {[%emt 0:00:09]} exd4 {[%emt 0:00:13]} 6. e5 {[%emt 0:00:09]} d5 {[%emt 0:00:07]} 7. Bb5 {[%emt 0:00:08]} Ne4 {[%emt 0:00:39]} 8. cxd4 {[%emt 0:00:34]} Bb6 {[%emt 0:00:08]} 9. Nc3 {[%emt 0:00:14]} O-O {[%emt 0:00:21]} 10. Be3 {[%emt 0:00:14]} Bg4 {[%emt 0:04:00]} 11. h3 {[%emt 0:00:14]} Bh5 {[%emt 0:00:17]} 12. Qc2 {[%emt 0:00:13]} Bg6 {[%emt 0:01:54]} 13. Qb3 {[%emt 0:06:09]} Ne7 {[%emt 0:00:33]} 14. O-O {[%emt 0:00:10]} c6 {[%emt 0:00:17]} 15. Bd3 {[%emt 0:00:34]} Nd2 {[%emt 0:01:27]} 16. Nxd2 {[%emt 0:00:42]} Bxd3 {[%emt 0:00:05]} 17. Rfe1 {[%emt 0:00:13]} Bg6 {[%emt 0:01:49]} 18. Na4 {[%emt 0:00:16]} Nf5 {[%emt 0:00:19]} 19. Qc3 {[%emt 0:00:16]} Re8 {[%emt 0:11:45]} 20. a3 {[%emt 0:03:12]} f6 {[%emt 0:03:50]} 21. Nxb6 {[%emt 0:01:11]} axb6 {[%emt 0:01:06]} 22. Bf4 {[%emt 0:02:19]} fxe5 {[%emt 0:00:16]} 23. dxe5 {[%emt 0:06:02]} c5 {[%emt 0:02:06]} 24. Nf3 {[%emt 0:00:49]} Nh4 {[%emt 0:06:20]} 25. e6 {[%emt 0:12:46]} Nxf3+ {[%emt 0:05:48]} 26. Qxf3 {[%emt 0:00:04]} Qf6 {[%emt 0:01:13]} 27. e7 {[%emt 0:00:35]} Rxe7 {[%emt 0:01:23]} 28. Rxe7 {[%emt 0:00:21]} Qxe7 {[%emt 0:00:03]} 29. Qxd5+ {[%emt 0:00:10]} Bf7 {[%emt 0:00:12]} 30. Qe5 {[%emt 0:02:58]} Qd7 {[%emt 0:03:39]} 31. Qg5 {[%emt 0:01:09]} Re8 {[%emt 0:00:37]} 32. Be5 {[%emt 0:01:06]} Bc4 {[%emt 0:02:55]} 33. Re1 {[%emt 0:00:34]} Re6 {[%emt 0:00:34]} 34. Qg4 {[%emt 0:03:11]} Bd3 {[%emt 0:03:44]} 35. Re3 {[%emt 0:04:49]} Re7 {[%emt 0:03:21]} 36. Qf4 {[%emt 0:02:28]} c4 {[%emt 0:10:36]} 37. Kh2 {[%emt 0:17:00]} h6 {[%emt 0:02:18]} 38. Rg3 {[%emt 0:04:37]} Qf5 {[%emt 0:02:10]} 39. Qxf5 {[%emt 0:00:36]} Bxf5 {[%emt 0:00:06]} 40. Bc3 {[%emt 0:00:44]} g6 {[%emt 0:01:49]} 41. Rf3 {[%emt 0:01:13]} h5 {[%emt 0:00:07]} 42. Rg3 {[%emt 0:02:42]} Re2 {[%emt 0:02:24]} 43. Kg1 {[%emt 0:01:20]} Kf7 {[%emt 0:00:29]} 44. h4 {[%emt 0:03:36]} Re8 {[%emt 0:07:57]} 45. f3 {[%emt 0:00:48]} Rd8 {[%emt 0:00:05]} 46. Kf2 {[%emt 0:01:10]} Rd5 {[%emt 0:00:40]} 47. Ke3 {[%emt 0:00:03]} Bd7 {[%emt 0:00:11]} 48. Ke4 {[%emt 0:02:39]} Bc6 {[%emt 0:00:08]} 49. Kf4 {[%emt 0:01:41]} Bd7 {[%emt 0:00:43]} 50. Be5 {[%emt 0:00:54]} b5 {[%emt 0:02:21]} 51. Rg5 {[%emt 0:00:37]} Bc6 {[%emt 0:00:19]} 52. g4 {[%emt 0:07:51]} hxg4 {[%emt 0:00:13]} 53. Rxg4 {[%emt 0:00:13]} Rd3 {[%emt 0:00:38]} 54. Rg3 {[%emt 0:00:02]} Bd5 {[%emt 0:00:09]} 55. Bc3 {[%emt 0:00:26]} Bc6 {[%emt 0:23:09]} 56. Rh3 {[%emt 0:01:30]} Bd5 {[%emt 0:00:00]} 57. Rg3 {[%emt 0:01:56]} Bc6 {[%emt 0:00:00]} 58. Kg4 {[%emt 0:01:13]} Bd5 {[%emt 0:00:00]} 59. Kf4 {[%emt 0:00:45]} 1/2-1/2

[Event "1st SOA-GM Festival 2024"]
[Site "Bhubaneswar"]
[Date "2024.02.01"]
[Round "4.5"]
[White "Soham Kamotra"]
[Black "Namitbir Singh Walia"]
[Result "1-0"]
[WhiteElo "2348"]
[BlackElo "2408"]
[PlyCount "87"]
[EventDate "2024.02.01"]
[EventType "swiss"]
[EventCountry "IND"]
[TimeControl "5400+30"]

1. Nf3 {[%emt 0:00:03]} Nf6 {[%emt 0:00:01]} 2. b3 {[%emt 0:00:27]} g6 {[%emt 0:00:07]} 3. Bb2 {[%emt 0:00:04]} Bg7 {[%emt 0:00:05]} 4. e3 {[%emt 0:00:04]} O-O {[%emt 0:01:36]} 5. d4 {[%emt 0:00:08]} d6 {[%emt 0:02:19]} 6. Be2 {[%emt 0:00:15]} e5 {[%emt 0:03:49]} 7. dxe5 {[%emt 0:00:09]} Ng4 {[%emt 0:00:51]} 8. Nc3 {[%emt 0:04:42]} Nxe5 {[%emt 0:01:30]} 9. h4 {[%emt 0:00:27]} Nbc6 {[%emt 0:15:55]} 10. Qd2 {[%emt 0:01:01]} Ng4 {[%emt 0:09:02]} 11. Bb5 {[%emt 0:10:53]} Bd7 {[%emt 0:12:50]} 12. O-O-O {[%emt 0:00:38]} a6 {[%emt 0:02:27]} 13. Bxc6 {[%emt 0:06:34]} Bxc6 {[%emt 0:00:08]} 14. Nd4 {[%emt 0:00:55]} h5 {[%emt 0:06:36]} 15. Nxc6 {[%emt 0:03:12]} bxc6 {[%emt 0:00:02]} 16. f3 {[%emt 0:00:15]} Ne5 {[%emt 0:05:02]} 17. Ne4 {[%emt 0:01:44]} d5 {[%emt 0:11:19]} 18. Qc3 {[%emt 0:05:18]} Qe7 {[%emt 0:00:40]} 19. Qc5 {[%emt 0:14:08]} Rfe8 {[%emt 0:05:00]} 20. Qxe7 {[%emt 0:00:08]} Rxe7 {[%emt 0:00:02]} 21. Nc5 {[%emt 0:00:07]} Bh6 {[%emt 0:02:40]} 22. Rhe1 {[%emt 0:03:15]} Nd7 {[%emt 0:01:24]} 23. Nxd7 {[%emt 0:01:11]} Rxd7 {[%emt 0:00:01]} 24. Be5 {[%emt 0:14:24]} Re8 {[%emt 0:01:57]} 25. Bf4 {[%emt 0:00:10]} Bxf4 {[%emt 0:04:36]} 26. exf4 {[%emt 0:00:03]} Rde7 {[%emt 0:00:24]} 27. Rxe7 {[%emt 0:05:34]} Rxe7 {[%emt 0:00:02]} 28. Rd4 {[%emt 0:05:34]} Re6 {[%emt 0:06:28]} 29. Kd2 {[%emt 0:00:14]} Rd6 {[%emt 0:00:45]} 30. b4 {[%emt 0:00:22]} f5 {[%emt 0:01:11]} 31. Rd3 {[%emt 0:00:33]} Rd8 {[%emt 0:02:05]} 32. Ra3 {[%emt 0:07:49]} Ra8 {[%emt 0:00:01]} 33. Ra5 {[%emt 0:00:36]} Kf7 {[%emt 0:00:50]} 34. Rc5 {[%emt 0:00:05]} Rb8 {[%emt 0:00:36]} 35. c3 {[%emt 0:00:31]} a5 {[%emt 0:01:05]} 36. Rxa5 {[%emt 0:00:06]} Ke6 {[%emt 0:00:16]} 37. Ra6 {[%emt 0:01:02]} Kd7 {[%emt 0:01:06]} 38. a4 {[%emt 0:02:00]} Rb6 {[%emt 0:00:38]} 39. Ra5 {[%emt 0:01:56]} Kd6 {[%emt 0:00:58]} 40. Rc5 {[%emt 0:00:59]} Ra6 {[%emt 0:00:37]} 41. a5 {[%emt 0:00:44]} Ra8 {[%emt 0:02:16]} 42. Kd3 {[%emt 0:00:28]} Kd7 {[%emt 0:00:24]} 43. Kd4 {[%emt 0:00:18]} Re8 {[%emt 0:00:01]} 44. a6 {[%emt 0:00:24]} 1-0

[Event "1st SOA-GM Festival 2024"]
[Site "Bhubaneswar"]
[Date "2024.02.01"]
[Round "4.6"]
[White "Barath Kalyan M"]
[Black "Subhayan Kundu"]
[Result "0-1"]
[WhiteElo "2040"]
[BlackElo "2385"]
[PlyCount "90"]
[EventDate "2024.02.01"]
[EventType "swiss"]
[EventCountry "IND"]
[TimeControl "5400+30"]

1. b3 {[%emt 1:31:00]} e5 {[%emt 0:01:20]} 2. Bb2 {[%emt 0:00:00]} Nc6 {[%emt 0:00:04]} 3. c4 {[%emt 0:00:00]} Nge7 {[%emt 0:00:11]} 4. e3 {[%emt 0:00:00]} d5 {[%emt 0:00:11]} 5. cxd5 {[%emt 0:00:00]} Nxd5 {[%emt 0:00:05]} 6. a3 {[%emt 0:00:00]} Be6 {[%emt 0:01:49]} 7. Qc2 {[%emt 0:00:00]} Qd7 {[%emt 0:02:11]} 8. Nf3 {[%emt 0:00:00]} f6 {[%emt 0:00:17]} 9. Bb5 {[%emt 0:00:00]} a6 {[%emt 0:05:01]} 10. Bxc6 {[%emt 0:00:00]} Qxc6 {[%emt 0:00:11]} 11. Qxc6+ {[%emt 0:00:00]} bxc6 {[%emt 0:00:01]} 12. d4 {[%emt 0:00:00]} Rb8 {[%emt 0:03:42]} 13. Nbd2 {[%emt 0:00:00]} exd4 {[%emt 0:02:33]} 14. Nxd4 {[%emt 0:00:00]} Bd7 {[%emt 0:00:03]} 15. O-O-O {[%emt 0:00:00]} c5 {[%emt 0:00:32]} 16. Nc2 {[%emt 0:00:00]} Bg4 {[%emt 0:03:09]} 17. Rde1 {[%emt 0:00:00]} Be6 {[%emt 0:00:27]} 18. g3 {[%emt 0:00:00]} Ne7 {[%emt 0:01:52]} 19. e4 {[%emt 0:09:00]} Nc6 {[%emt 0:03:33]} 20. Re3 {[%emt 0:00:00]} Kf7 {[%emt 0:07:35]} 21. Rc3 {[%emt 0:00:00]} Bd6 {[%emt 0:03:24]} 22. b4 {[%emt 0:00:00]} a5 {[%emt 0:00:34]} 23. f4 {[%emt 0:00:00]} axb4 {[%emt 0:01:20]} 24. Re3 {[%emt 0:00:00]} Rhd8 {[%emt 0:02:55]} 25. Rhe1 {[%emt 0:00:00]} Be7 {[%emt 0:01:29]} 26. f5 {[%emt 0:00:00]} Ba2 {[%emt 0:00:09]} 27. Nf3 {[%emt 0:00:00]} Na5 {[%emt 0:01:29]} 28. Nd2 {[%emt 0:01:54]} Rxd2 {[%emt 0:03:48]} 29. Kxd2 {[%emt 0:00:08]} Nc4+ {[%emt 0:00:04]} 30. Kc1 {[%emt 0:00:07]} bxa3 {[%emt 0:00:14]} 31. Nxa3 {[%emt 0:01:14]} Nxb2 {[%emt 0:01:36]} 32. R1e2 {[%emt 0:01:33]} Nc4 {[%emt 0:54:41]} 33. Rc3 {[%emt 0:00:29]} Nxa3 {[%emt 0:00:00]} 34. Rxa2 {[%emt 0:00:15]} Rb1+ {[%emt 0:00:00]} 35. Kd2 {[%emt 0:00:11]} Nb5 {[%emt 0:00:00]} 36. Rcc2 {[%emt 0:01:07]} Rb4 {[%emt 0:00:00]} 37. Kd3 {[%emt 0:00:35]} Rd4+ {[%emt 0:00:00]} 38. Ke3 {[%emt 0:00:03]} c4 {[%emt 0:00:00]} 39. Ra5 {[%emt 0:01:36]} c6 {[%emt 0:00:00]} 40. Ra4 {[%emt 0:00:39]} Bc5 {[%emt 0:00:00]} 41. Kf4 {[%emt 0:00:13]} c3 {[%emt 0:00:00]} 42. Ra6 {[%emt 0:00:47]} Rd2 {[%emt 0:00:00]} 43. Rc1 {[%emt 0:00:27]} h5 {[%emt 0:00:00]} 44. Rf1 {[%emt 0:00:22]} c2 {[%emt 0:00:00]} 45. Rc1 {[%emt 0:00:47]} Rf2# {[%emt 0:00:00]} 0-1

[Event "1st SOA-GM Festival 2024"]
[Site "Bhubaneswar"]
[Date "2024.02.01"]
[Round "4.7"]
[White "Aakash Sharadchandra, Dalvi"]
[Black "Ayush Sharma"]
[Result "0-1"]
[WhiteElo "2180"]
[BlackElo "2378"]
[PlyCount "58"]
[EventDate "2024.02.01"]
[EventType "swiss"]
[EventCountry "IND"]
[TimeControl "5400+30"]

1. Nf3 {[%emt 0:06:47]} Nf6 {[%emt 0:00:07]} 2. c4 {[%emt 0:00:36]} e6 {[%emt 0:00:08]} 3. g3 {[%emt 0:00:15]} d5 {[%emt 0:01:21]} 4. d4 {[%emt 0:00:20]} c6 {[%emt 0:01:34]} 5. Qc2 {[%emt 0:01:40]} Be7 {[%emt 0:00:21]} 6. Bg2 {[%emt 0:00:10]} O-O {[%emt 0:00:03]} 7. O-O {[%emt 0:00:07]} Nbd7 {[%emt 0:02:05]} 8. b3 {[%emt 0:00:49]} b6 {[%emt 0:00:08]} 9. Nc3 {[%emt 0:03:31]} Ba6 {[%emt 0:00:17]} 10. Nd2 {[%emt 0:02:23]} Rc8 {[%emt 0:05:05]} 11. e4 {[%emt 0:10:11]} dxc4 {[%emt 0:04:58]} 12. Nxc4 {[%emt 0:00:45]} b5 {[%emt 0:00:18]} 13. Ne3 {[%emt 0:01:07]} b4 {[%emt 0:01:08]} 14. Ne2 {[%emt 0:00:12]} c5 {[%emt 0:01:56]} 15. d5 {[%emt 0:01:17]} exd5 {[%emt 0:04:15]} 16. exd5 {[%emt 0:00:14]} Nb6 {[%emt 0:11:46]} 17. Rd1 {[%emt 0:04:50]} Re8 {[%emt 0:08:37]} 18. Nc4 {[%emt 0:06:30]} Bxc4 {[%emt 0:04:28]} 19. bxc4 {[%emt 0:00:03]} Nfd7 {[%emt 0:00:27]} 20. d6 {[%emt 0:11:25]} Bf8 {[%emt 0:00:31]} 21. Bf4 {[%emt 0:13:22]} Qf6 {[%emt 0:00:53]} 22. Bh3 {[%emt 0:06:36]} Rcd8 {[%emt 0:00:29]} 23. a3 {[%emt 0:01:49]} b3 {[%emt 0:01:07]} 24. Qd3 {[%emt 0:01:32]} b2 {[%emt 0:00:12]} 25. Rab1 {[%emt 0:00:20]} Ne5 {[%emt 0:05:35]} 26. Bxe5 {[%emt 0:01:39]} Qxe5 {[%emt 0:02:28]} 27. d7 {[%emt 0:04:20]} Nxd7 {[%emt 0:00:02]} 28. Bxd7 {[%emt 0:04:03]} Qxe2 {[%emt 0:00:03]} 29. Qb3 {[%emt 0:06:04]} Rxd7 {[%emt 0:00:22]} 0-1

[Event "1st SOA-GM Festival 2024"]
[Site "Bhubaneswar"]
[Date "2024.02.01"]
[Round "4.8"]
[White "Das, Sayantan"]
[Black "Pattnayak Nilsu"]
[Result "1-0"]
[WhiteElo "2514"]
[BlackElo "1987"]
[PlyCount "115"]
[EventDate "2024.02.01"]
[EventType "swiss"]
[EventCountry "IND"]
[TimeControl "5400+30"]

1. e4 {[%emt 0:03:58]} e5 {[%emt 0:04:15]} 2. Bc4 {[%emt 0:01:32]} Nf6 {[%emt 0:01:16]} 3. d3 {[%emt 0:00:11]} Nc6 {[%emt 0:00:40]} 4. Nc3 {[%emt 0:03:00]} Bc5 {[%emt 0:01:11]} 5. Nf3 {[%emt 0:05:04]} h6 {[%emt 0:00:24]} 6. h3 {[%emt 0:00:28]} d6 {[%emt 0:00:07]} 7. a3 {[%emt 0:01:56]} Be6 {[%emt 0:01:41]} 8. Bb5 {[%emt 0:03:30]} a6 {[%emt 0:08:05]} 9. Bxc6+ {[%emt 0:00:40]} bxc6 {[%emt 0:00:04]} 10. d4 {[%emt 0:01:49]} exd4 {[%emt 0:01:07]} 11. Nxd4 {[%emt 0:00:07]} O-O {[%emt 0:12:09]} 12. O-O {[%emt 0:02:21]} Bd7 {[%emt 0:05:07]} 13. Nde2 {[%emt 0:04:30]} Re8 {[%emt 0:01:44]} 14. Ng3 {[%emt 0:00:20]} d5 {[%emt 0:02:13]} 15. Qf3 {[%emt 0:09:28]} d4 {[%emt 0:15:32]} 16. Nb1 {[%emt 0:15:40]} Bd6 {[%emt 0:09:02]} 17. Bf4 {[%emt 0:00:34]} c5 {[%emt 0:04:23]} 18. Nd2 {[%emt 0:01:22]} Bc6 {[%emt 0:01:45]} 19. Rfe1 {[%emt 0:00:23]} Nd7 {[%emt 0:09:05]} 20. Nf5 {[%emt 0:08:55]} Bxf4 {[%emt 0:00:17]} 21. Qxf4 {[%emt 0:00:05]} Ne5 {[%emt 0:00:07]} 22. Nb3 {[%emt 0:01:32]} Rb8 {[%emt 0:02:09]} 23. Qg3 {[%emt 0:02:58]} Ng6 {[%emt 0:06:02]} 24. Nxc5 {[%emt 0:05:41]} Rxb2 {[%emt 0:00:19]} 25. Qd3 {[%emt 0:01:45]} Ne5 {[%emt 0:02:01]} 26. Qxd4 {[%emt 0:05:14]} Rxc2 {[%emt 0:00:21]} 27. Nxa6 {[%emt 0:00:47]} Bb7 {[%emt 0:02:23]} 28. Qxd8 {[%emt 0:03:57]} Rxd8 {[%emt 0:11:01]} 29. Nb4 {[%emt 0:00:05]} Rb2 {[%emt 0:00:00]} 30. Nd5 {[%emt 0:04:21]} Kh7 {[%emt 0:00:00]} 31. Red1 {[%emt 0:02:09]} Rd7 {[%emt 0:00:00]} 32. a4 {[%emt 0:04:16]} Kh8 {[%emt 0:00:00]} 33. a5 {[%emt 0:00:44]} Ba6 {[%emt 0:00:00]} 34. Rdb1 {[%emt 0:02:35]} Rxb1+ {[%emt 0:00:00]} 35. Rxb1 {[%emt 0:00:01]} Bd3 {[%emt 0:01:23]} 36. Rb8+ {[%emt 0:00:44]} Kh7 {[%emt 0:00:06]} 37. f3 {[%emt 0:00:48]} c5 {[%emt 0:02:00]} 38. Rc8 {[%emt 0:01:26]} c4 {[%emt 0:00:06]} 39. a6 {[%emt 0:00:39]} c3 {[%emt 0:01:16]} 40. Nb4 {[%emt 0:00:06]} c2 {[%emt 0:00:37]} 41. Ne3 {[%emt 0:03:49]} Bxa6 {[%emt 0:00:03]} 42. Rxc2 {[%emt 0:00:06]} Bb7 {[%emt 0:00:21]} 43. Ng4 {[%emt 0:01:13]} Nxg4 {[%emt 0:00:47]} 44. hxg4 {[%emt 0:00:06]} Rd4 {[%emt 0:00:23]} 45. Rb2 {[%emt 0:00:16]} Rd7 {[%emt 0:00:19]} 46. Kf2 {[%emt 0:00:16]} g6 {[%emt 0:00:18]} 47. Ke3 {[%emt 0:00:19]} Kg7 {[%emt 0:00:04]} 48. Nd3 {[%emt 0:00:09]} Bc8 {[%emt 0:01:05]} 49. Rc2 {[%emt 0:00:44]} Rd8 {[%emt 0:00:36]} 50. Rc7 {[%emt 0:00:31]} Be6 {[%emt 0:00:32]} 51. Nc5 {[%emt 0:00:50]} Kf6 {[%emt 0:00:38]} 52. Rc6 {[%emt 0:01:09]} Rd1 {[%emt 0:00:33]} 53. f4 {[%emt 0:00:22]} Ke7 {[%emt 0:00:30]} 54. f5 {[%emt 0:00:09]} gxf5 {[%emt 0:00:48]} 55. gxf5 {[%emt 0:00:07]} Ba2 {[%emt 0:00:27]} 56. Rxh6 {[%emt 0:01:07]} Rc1 {[%emt 0:00:10]} 57. Rc6 {[%emt 0:00:46]} Bb1 {[%emt 0:00:18]} 58. f6+ {[%emt 0:00:11]} 1-0

[Event "1st SOA-GM Festival 2024"]
[Site "Bhubaneswar"]
[Date "2024.02.01"]
[Round "4.9"]
[White "Neelash Saha"]
[Black "Nilssen, Ellen Fredericia"]
[Result "1-0"]
[WhiteElo "2446"]
[BlackElo "2184"]
[PlyCount "109"]
[EventDate "2024.02.01"]
[EventType "swiss"]
[EventCountry "IND"]
[TimeControl "5400+30"]

1. b3 {[%emt 0:00:17]} d5 {[%emt 0:00:22]} 2. Bb2 {[%emt 0:00:06]} c5 {[%emt 0:00:06]} 3. e3 {[%emt 0:00:26]} Nc6 {[%emt 0:00:48]} 4. Bb5 {[%emt 0:00:30]} Bd7 {[%emt 0:02:02]} 5. Nf3 {[%emt 0:00:39]} a6 {[%emt 0:01:11]} 6. Bxc6 {[%emt 0:01:14]} Bxc6 {[%emt 0:00:06]} 7. Ne5 {[%emt 0:01:28]} Rc8 {[%emt 0:00:58]} 8. d4 {[%emt 0:05:30]} cxd4 {[%emt 0:05:31]} 9. Qxd4 {[%emt 0:00:21]} e6 {[%emt 0:04:22]} 10. Nd2 {[%emt 0:03:25]} Nf6 {[%emt 0:00:39]} 11. O-O-O {[%emt 0:01:57]} Qa5 {[%emt 0:05:35]} 12. Kb1 {[%emt 0:00:22]} Bc5 {[%emt 0:09:36]} 13. Qf4 {[%emt 0:00:23]} Bb4 {[%emt 0:01:05]} 14. Qg5 {[%emt 0:07:20]} Kf8 {[%emt 0:00:32]} 15. Ndf3 {[%emt 0:11:43]} Bc3 {[%emt 0:03:15]} 16. Bxc3 {[%emt 0:00:41]} Qxc3 {[%emt 0:00:06]} 17. Rd3 {[%emt 0:00:03]} Qc5 {[%emt 0:02:02]} 18. Rc1 {[%emt 0:04:25]} Ne4 {[%emt 0:17:46]} 19. Qf4 {[%emt 0:00:07]} Be8 {[%emt 0:00:08]} 20. Nd4 {[%emt 0:02:35]} Ke7 {[%emt 0:03:15]} 21. c4 {[%emt 0:02:08]} g5 {[%emt 0:03:24]} 22. Qf3 {[%emt 0:01:39]} f6 {[%emt 0:02:14]} 23. Nxe6 {[%emt 0:48:30]} Qd6 {[%emt 0:00:35]} 24. Rxd5 {[%emt 0:02:32]} Qxe5 {[%emt 0:06:14]} 25. Nf4 {[%emt 0:00:05]} Nc3+ {[%emt 0:07:53]} 26. Rxc3 {[%emt 0:00:05]} Qxc3 {[%emt 0:00:05]} 27. Rd3 {[%emt 0:03:03]} Bc6 {[%emt 0:04:03]} 28. Nd5+ {[%emt 0:00:17]} Bxd5 {[%emt 0:05:06]} 29. Qxd5 {[%emt 0:00:03]} Qe1+ {[%emt 0:01:11]} 30. Rd1 {[%emt 0:00:04]} Qxd1+ {[%emt 0:00:28]} 31. Qxd1 {[%emt 0:00:02]} Rcd8 {[%emt 0:00:11]} 32. Qc2 {[%emt 0:00:06]} Rd7 {[%emt 0:00:41]} 33. Qe4+ {[%emt 0:00:17]} Kd8 {[%emt 0:00:53]} 34. h4 {[%emt 0:00:22]} gxh4 {[%emt 0:03:43]} 35. Qxh4 {[%emt 0:00:08]} Rf8 {[%emt 0:00:23]} 36. Kc2 {[%emt 0:00:14]} Kc8 {[%emt 0:00:08]} 37. Qf4 {[%emt 0:00:09]} Rff7 {[%emt 0:01:46]} 38. g4 {[%emt 0:00:17]} Rc7 {[%emt 0:02:10]} 39. Kc3 {[%emt 0:00:22]} Rcd7 {[%emt 0:01:31]} 40. a4 {[%emt 0:00:52]} a5 {[%emt 0:00:48]} 41. Qf5 {[%emt 0:00:10]} b6 {[%emt 0:00:14]} 42. Qb5 {[%emt 0:00:34]} f5 {[%emt 0:02:56]} 43. Qc6+ {[%emt 0:03:21]} Rc7 {[%emt 0:00:46]} 44. Qa8+ {[%emt 0:00:04]} Kd7 {[%emt 0:00:05]} 45. Qd5+ {[%emt 0:00:04]} Kc8 {[%emt 0:00:21]} 46. gxf5 {[%emt 0:00:05]} Rf6 {[%emt 0:00:39]} 47. e4 {[%emt 0:00:19]} Rd7 {[%emt 0:00:14]} 48. Qg8+ {[%emt 0:00:27]} Kb7 {[%emt 0:00:34]} 49. Qg5 {[%emt 0:00:31]} Rfd6 {[%emt 0:00:13]} 50. Qe3 {[%emt 0:00:34]} Rd1 {[%emt 0:02:31]} 51. e5 {[%emt 0:00:07]} Ra1 {[%emt 0:00:43]} 52. e6 {[%emt 0:00:16]} Rdd1 {[%emt 0:00:30]} 53. e7 {[%emt 0:00:04]} Rac1+ {[%emt 0:00:27]} 54. Qxc1 {[%emt 0:00:05]} Rxc1+ {[%emt 0:00:03]} 55. Kd2 {[%emt 0:00:08]} 1-0

[Event "1st SOA-GM Festival 2024"]
[Site "Bhubaneswar"]
[Date "2024.02.01"]
[Round "4.10"]
[White "Kaustuv, Kundu"]
[Black "Aquino, Jethro Dino"]
[Result "0-1"]
[WhiteElo "2423"]
[BlackElo "2166"]
[PlyCount "38"]
[EventDate "2024.02.01"]
[EventType "swiss"]
[EventCountry "IND"]
[TimeControl "5400+30"]

1. c4 {[%emt 0:00:20]} Nf6 {[%emt 0:00:19]} 2. Nf3 {[%emt 0:03:04]} c5 {[%emt 0:00:31]} 3. b3 {[%emt 0:01:24]} g6 {[%emt 0:02:36]} 4. Bb2 {[%emt 0:00:05]} Bg7 {[%emt 0:00:04]} 5. g3 {[%emt 0:00:05]} O-O {[%emt 0:00:28]} 6. Bg2 {[%emt 0:00:04]} Nc6 {[%emt 0:03:57]} 7. O-O {[%emt 0:00:55]} e6 {[%emt 0:03:32]} 8. d4 {[%emt 0:01:21]} cxd4 {[%emt 0:02:17]} 9. Nxd4 {[%emt 0:00:05]} d5 {[%emt 0:02:29]} 10. cxd5 {[%emt 0:01:13]} exd5 {[%emt 0:00:18]} 11. Nxc6 {[%emt 0:02:37]} bxc6 {[%emt 0:00:05]} 12. Nc3 {[%emt 0:00:04]} Re8 {[%emt 0:08:11]} 13. Rc1 {[%emt 0:05:02]} Bf5 {[%emt 0:02:58]} 14. Na4 {[%emt 0:01:44]} Qd6 {[%emt 0:06:52]} 15. e3 {[%emt 0:07:00]} Be4 {[%emt 0:10:01]} 16. Bh3 {[%emt 0:01:12]} g5 {[%emt 0:03:33]} 17. Qd4 {[%emt 0:02:02]} Nh5 {[%emt 0:09:17]} 18. Qc5 {[%emt 0:01:17]} Qh6 {[%emt 0:00:09]} 19. Qxc6 {[%emt 0:13:12]} Nxg3 {[%emt 0:00:39]} 0-1